fUSD/lending_fUSD_20250106
["ID","MTS","AMOUNT","RATE_DAILY","PERIOD"]
[347844676,1736151044961,-500.0,0.00010752,2]
[347844677,1736151044970,-1030.067934,0.00010752,2]
[347844678,1736151044979,-241.51,0.00010752,2]
[347844679,1736151044989,-772.94,0.00010752,2]
[347844680,1736151044998,-500.0,0.00010752,2]
[347844681,1736151045008,-500.0,0.00010752,2]
[347844682,1736151045017,-917.700782,0.00010752,2]
[347844683,1736151045027,-500.0,0.00010752,2]
[347844684,1736151045036,-500.0,0.00010752,2]
[347844685,1736151045045,-1125.09,0.00010752,2]
[347844686,1736151045054,-2305.97,0.00010752,2]
[347844687,1736151045063,-3360.18,0.00010752,2]
[347844688,1736151045072,-808.51,0.00010752,2]
[347844689,1736151045081,-500.0,0.00010752,2]
[347844690,1736151045091,-2182.01,0.00010752,2]
[347844691,1736151045100,-1975.06,0.00010753,2]
[347844692,1736151045109,-1249.95,0.00010753,2]
[347844693,1736151045118,-646.64,0.00010753,2]
[347844694,1736151045128,-500.0,0.00010753,2]
[347844695,1736151045137,-1098.06,0.00010753,2]
[347844696,1736151045146,-1973.56,0.00010753,2]
[347844697,1736151045156,-151.0,0.00010753,2]
[347844698,1736151045165,-151.0,0.00010753,2]
[347844699,1736151045174,-1003.96,0.00010753,2]
[347844700,1736151045183,-677.84,0.00010753,2]
[347844701,1736151045193,-500.0,0.00010753,2]
[347844702,1736151045202,-500.0,0.00010753,2]
[347844703,1736151045211,-706.11,0.00010753,2]
[347844704,1736151045219,-200.0,0.00010786,2]
[347844705,1736151045228,-200.0,0.00010786,2]
[347844706,1736151045237,-200.0,0.00010786,2]
[347844707,1736151045248,-4208.87168008,0.00010796,2]
[347844708,1736151045258,-1000.0,0.00010812,2]
[347844709,1736151045267,-500.0,0.00010818,2]
[347844710,1736151045276,-500.0,0.00010818,2]
[347844711,1736151045286,-186.18827744,0.00010818,2]
[347844712,1736151045295,-500.0,0.00010818,2]
[347844713,1736151045304,-175.99131654,0.00010818,2]
[347844714,1736151045313,-500.0,0.00010818,2]
[347844715,1736151045322,-500.0,0.00010818,2]
[347844716,1736151045332,-500.0,0.00010818,2]
[347844717,1736151045341,-200.96309827,0.00010818,2]
[347844718,1736151045350,-500.0,0.00010818,2]
[347844719,1736151045360,-636.02875109,0.00010818,2]
[347844720,1736151045369,-500.0,0.00010818,2]
[347844721,1736151045378,-500.0,0.00010818,2]
[347844722,1736151045388,-228.35171238,0.00010818,2]
[347844723,1736151045397,-448.11927723,0.00010818,2]
[347844724,1736151045411,-500.0,0.00010818,2]
[347844725,1736151045420,-500.0,0.00010818,2]
[347844726,1736151045430,-338.42390481,0.00010818,2]
[347844727,1736151045439,-500.0,0.00010818,2]
[347844728,1736151045450,-500.0,0.00010818,2]
[347844729,1736151045459,-500.0,0.00010818,2]
[347844730,1736151045469,-183.42726381,0.00010818,2]
[347844731,1736151045479,-500.0,0.00010818,2]
[347844732,1736151045488,-500.0,0.00010818,2]
[347844733,1736151045498,-500.0,0.00010818,2]
[347844734,1736151045507,-270.76930856,0.00010818,2]
[347844735,1736151045516,-500.0,0.00010818,2]
[347844736,1736151045527,-500.0,0.00010818,2]
[347844737,1736151045536,-500.0,0.00010818,2]
[347844738,1736151045545,-500.0,0.00010818,2]
[347844739,1736151045555,-500.0,0.00010818,2]
[347844740,1736151045564,-500.0,0.00010818,2]
[347844741,1736151045573,-500.0,0.00010818,2]
[347844742,1736151045583,-500.0,0.00010818,2]
[347844743,1736151045592,-251.40058355,0.00010818,2]
[347844744,1736151045601,-500.0,0.00010818,2]
[347844745,1736151045610,-500.0,0.00010818,2]
[347844746,1736151045620,-500.0,0.00010818,2]
[347844747,1736151045629,-501.98,0.00010818,2]
[347844748,1736151045639,-604.19029741,0.00010818,2]
[347844749,1736151045648,-500.0,0.00010818,2]
[347844750,1736151045658,-500.0,0.00010818,2]
[347844751,1736151045667,-500.0,0.00010818,2]
[347844752,1736151045676,-500.0,0.00010818,2]
[347844753,1736151045686,-500.0,0.00010818,2]
[347844754,1736151045696,-500.8,0.00010818,2]
[347844755,1736151045705,-500.0,0.00010818,2]
[347844756,1736151045715,-500.0,0.00010818,2]
[347844757,1736151045724,-203.04379795,0.00010818,2]
[347844758,1736151045733,-500.0,0.00010818,2]
[347844759,1736151045742,-500.0,0.00010818,2]
[347844760,1736151045752,-1225.08,0.00010818,2]
[347844761,1736151045762,-500.0,0.00010818,2]
[347844762,1736151045771,-500.0,0.00010818,2]
[347844763,1736151045780,-500.0,0.00010818,2]
[347844764,1736151045790,-500.0,0.00010818,2]
[347844765,1736151045799,-1898.8,0.00010818,2]
[347844766,1736151045809,-500.0,0.00010818,2]
[347844767,1736151045818,-500.0,0.00010818,2]
[347844768,1736151045827,-2491.62,0.00010818,2]
[347844769,1736151045837,-500.0,0.00010818,2]
[347844770,1736151045847,-500.0,0.00010818,2]
[347844772,1736151045856,-546.79,0.00010818,2]
[347844774,1736151045865,-500.0,0.00010818,2]
[347844776,1736151045874,-500.0,0.00010818,2]
[347844778,1736151045884,-500.0,0.00010818,2]
[347844780,1736151045894,-416.2,0.00010818,2]
[347844781,1736151045903,-500.0,0.00010818,2]
[347844782,1736151045910,-343.17042124,0.00010818,2]
[347844783,1736151045917,-500.0,0.00010818,2]
[347844784,1736151045924,-500.0,0.00010818,2]
[347844785,1736151045931,-514.54,0.00010818,2]
[347844786,1736151045938,-596.96,0.00010818,2]
[347844787,1736151045946,-181.23897263,0.00010818,2]
[347844788,1736151045956,-318.76102737,0.00010818,2]
[347844789,1736151045963,-361.64851334,0.00010818,2]
[347844790,1736151045971,-138.35148666,0.00010818,2]
[347844791,1736151045979,-529.32,0.00010818,2]
[347844792,1736151045985,-464.91300473,0.00010818,2]
[347844793,1736151045995,-35.08699527,0.00010818,2]
[347844794,1736151046002,-500.0,0.00010818,2]
[347844795,1736151046012,-500.0,0.00010818,2]
[347844796,1736151046021,-500.0,0.00010818,2]
[347844797,1736151046030,-500.0,0.00010818,2]
[347844798,1736151046040,-500.0,0.00010818,2]
[347844799,1736151046049,-414.62343423,0.00010818,2]
[347844800,1736151046058,-500.0,0.00010818,2]
[347844801,1736151046067,-760.25,0.00010818,2]
[347844802,1736151046077,-594.48,0.00010818,2]
[347844803,1736151046086,-500.0,0.00010818,2]
[347844804,1736151046096,-500.0,0.00010818,2]
[347844805,1736151046106,-500.0,0.00010819,2]
[347844806,1736151046115,-500.0,0.00010819,2]
[347844807,1736151046124,-531.74328603,0.00010819,2]
[347844808,1736151046136,-619.61671397,0.00010819,2]
[347844809,1736151046145,-1045.09,0.00010819,2]
[347844810,1736151046154,-1045.09,0.00010819,2]
[347844811,1736151046162,-1922.17,0.00010819,2]
[347844812,1736151046170,-610.78269524,0.00010819,2]
[347844813,1736151046194,-500.0,0.00010544,2]
[347844814,1736151046203,-4511.47730476,0.00010819,2]
[347844815,1736151046213,-500.0,0.00010819,2]
[347844816,1736151046222,-500.0,0.00010819,2]
[347844817,1736151046231,-500.0,0.00010819,2]
[347844818,1736151046240,-2261.26,0.00010819,2]
[347844819,1736151046249,-500.0,0.00010819,2]
[347844820,1736151046258,-500.0,0.00010819,2]
[347844821,1736151046267,-1088.89,0.00010819,2]
[347844822,1736151046277,-500.0,0.00010819,2]
[347844824,1736151046286,-535.71,0.00010819,2]
[347844826,1736151046296,-500.0,0.00010819,2]
[347844828,1736151046305,-500.0,0.00010819,2]
[347844830,1736151046315,-1536.66,0.00010819,2]
[347844832,1736151046324,-500.0,0.00010819,2]
[347844834,1736151046334,-1114.54,0.00010819,2]
[347844836,1736151046343,-500.0,0.00010851,2]
[347844838,1736151046352,-500.0,0.00010851,2]
[347844840,1736151046362,-500.0,0.00010851,2]
[347844842,1736151046371,-500.0,0.00010851,2]
[347844844,1736151046381,-1850.37,0.00010851,2]
[347844846,1736151046390,-770.7,0.00010851,2]
[347844848,1736151046399,-562.26,0.00010851,2]
[347844850,1736151046411,-301.40740016,0.00010851,2]
[347844853,1736151046423,-198.59259984,0.00010851,2]
[347844855,1736151046433,-500.0,0.00010851,2]
[347844857,1736151046443,-760.62,0.00010851,2]
[347844859,1736151046452,-1024.19,0.00010851,2]
[347844861,1736151046461,-901.78,0.00010851,2]
[347844863,1736151046470,-749.45,0.00010851,2]
[347844865,1736151046479,-2501.08,0.00010851,2]
[347844867,1736151046488,-1434.27,0.00010851,2]
[347844869,1736151046497,-2307.3370813,0.00010851,2]
[347844871,1736151046509,-1580.61261136,0.00010851,2]
[347844874,1736151046528,-679.95030734,0.00010851,2]
[347844876,1736151046537,-2015.79105551,0.00010851,2]
[347844878,1736151046550,-1733.53894449,0.00010851,2]
[347844880,1736151046559,-100.62525946,0.00010851,2]
[347844882,1736151046570,-423.50474054,0.00010851,2]
[347844884,1736151046580,-500.0,0.00010851,2]
[347844886,1736151046589,-500.0,0.00010851,2]
[347844888,1736151046599,-500.0,0.00010851,2]
[347844890,1736151046609,-500.0,0.00010851,2]
[347844892,1736151046618,-500.0,0.00010851,2]
[347844894,1736151046627,-569.58150419,0.00010851,2]
[347844896,1736151046637,-500.0,0.00010852,2]
[347844898,1736151046646,-394.05579806,0.00010852,2]
[347844900,1736151046654,-500.0,0.00010852,2]
[347844902,1736151046663,-500.0,0.00010852,2]
[347844904,1736151046672,-238.90324432,0.00010852,2]
[347844906,1736151046682,-542.2,0.00010852,2]
[347844908,1736151046691,-224.08879953,0.00010852,2]
[347844910,1736151046700,-500.0,0.00010852,2]
[347844912,1736151046709,-79.15159673,0.00010852,2]
[347844914,1736151046721,-420.84840327,0.00010852,2]
[347844916,1736151046730,-330.77166819,0.00010852,2]
[347844918,1736151046741,-169.22833181,0.00010852,2]
[347844920,1736151046751,-1300.45572349,0.00010852,2]
[347844990,1736151047415,-159.832733,0.00010478,2]
[347844992,1736151047426,-221.18,0.00010818,2]
[347844994,1736151047436,-1418.03427651,0.00010852,2]
[347844996,1736151047445,-439.22775127,0.00010852,2]
[347844998,1736151047457,-60.77224873,0.00010852,2]
[347845000,1736151047466,-500.0,0.00010852,2]
[347845002,1736151047476,-500.0,0.00010852,2]
[347845004,1736151047485,-242.4046832,0.00010852,2]
[347845005,1736151047497,-257.5953168,0.00010852,2]
[347845006,1736151047506,-500.0,0.00010852,2]
[347845007,1736151047515,-500.0,0.00010852,2]
[347845008,1736151047526,-500.0,0.00010852,2]
[347845009,1736151047535,-500.0,0.00010852,2]
[347845010,1736151047545,-616.52,0.00010852,2]
[347845011,1736151047555,-500.0,0.00010852,2]
[347845012,1736151047564,-536.35,0.00010852,2]
[347845013,1736151047574,-530.46,0.00010852,2]
[347845014,1736151047583,-500.0,0.00010852,2]
[347845015,1736151047593,-500.0,0.00010852,2]
[347845016,1736151047602,-1490.82,0.00010852,2]
[347845017,1736151047611,-500.0,0.00010852,2]
[347845018,1736151047621,-615.24,0.00010852,2]
[347845019,1736151047630,-857.42,0.00010852,2]
[347845020,1736151047643,-940.76,0.00010852,2]
[347845021,1736151047653,-1703.68,0.00010852,2]
[347845022,1736151047662,-1107.73,0.00010852,2]
[347845023,1736151047672,-2842.54,0.00010852,2]
[347845024,1736151047683,-500.21389454,0.00010881,2]
[347845025,1736151047693,-200.0,0.00010894,2]
[347845026,1736151047703,-200.0,0.00010894,2]
[347845027,1736151047714,-200.0,0.00010894,2]
[347845028,1736151047724,-289.58541059,0.000109,2]
[347845029,1736151047733,-158.55285901,0.000109,2]
[347845030,1736151047743,-151.57,0.00010905,2]
[347845031,1736151047752,-1398.71,0.00010952,2]
[347845032,1736151047762,-7500.0,0.00010958,2]
[347845033,1736151047772,-2000.0,0.00010959,2]
[347845034,1736151047782,-2000.0,0.00010959,2]
[347845035,1736151047791,-2000.0,0.00010959,2]
[347845036,1736151047800,-2000.0,0.00010959,2]
[347845037,1736151047810,-2000.0,0.00010959,2]
[347845038,1736151047819,-2000.0,0.00010959,2]
[347845039,1736151047828,-818.97641307,0.00010959,2]
[347845040,1736151047850,-1181.02358693,0.00010959,2]
[347845041,1736151047860,-684.87656723,0.00010959,2]
[347845042,1736151047872,-1315.12343277,0.00010959,2]
[347845043,1736151047882,-2000.0,0.00010959,2]
[347845044,1736151047891,-2000.0,0.00010959,2]
[347845045,1736151047901,-2000.0,0.00010959,2]
[347845046,1736151047910,-2000.0,0.00010959,2]
[347845047,1736151047920,-2000.0,0.00010959,2]
[347845048,1736151047929,-2000.0,0.00010959,2]
[347845049,1736151047939,-2000.0,0.00010959,2]
[347845050,1736151047948,-2000.0,0.00010959,2]
[347845051,1736151047957,-2000.0,0.00010959,2]
[347845052,1736151047967,-2000.0,0.00010959,2]
[347845053,1736151047976,-2000.0,0.00010959,2]
[347845054,1736151047985,-2000.0,0.00010959,2]
[347845055,1736151047995,-2000.0,0.00010959,2]
[347845056,1736151048004,-150.0,0.00010959,2]
[347845057,1736151048014,-2722.77678304,0.00010959,2]
[347845058,1736151048026,-3639.43722542,0.00010959,2]
[347845059,1736151048038,-293.91599154,0.00010959,2]
[347845060,1736151048047,-400.0,0.00010986,2]
[347845061,1736151048057,-500.0,0.00010987,2]
[347845062,1736151048066,-255.16218868,0.00011,2]
[347845063,1736151048081,-294.83781132,0.00011,2]
[347845064,1736151048090,-200.0,0.00011003,2]
[347845065,1736151048100,-200.0,0.00011003,2]
[347845066,1736151048109,-291.51443135,0.00011021,2]
[347845067,1736151048119,-500.0,0.00011026,2]
[347845068,1736151048129,-500.0,0.00011026,2]
[347845069,1736151048138,-500.0,0.00011026,2]
[347845070,1736151048147,-1147.9,0.00011026,2]
[347845071,1736151048157,-1276.59814389,0.00011026,2]
[347845072,1736151048168,-408.45185611,0.00011026,2]
[347845073,1736151048177,-129.50698726,0.00011026,2]
[347845074,1736151048188,-370.49301274,0.00011026,2]
[347845075,1736151048198,-93.00295411,0.00011026,2]
[347845076,1736151048210,-324.95834368,0.00011026,2]
[347845077,1736151048231,-82.03870221,0.00011026,2]
[347845078,1736151048240,-500.0,0.00011026,2]
[347845079,1736151048250,-500.0,0.00011026,2]
[347845080,1736151048260,-837.88,0.00011026,2]
[347845081,1736151048269,-1244.25,0.00011026,2]
[347845082,1736151048280,-500.0,0.00011026,2]
[347845083,1736151048290,-1485.06,0.00011026,2]
[347845084,1736151048299,-1266.43,0.00011026,2]
[347845085,1736151048308,-778.24,0.00011026,2]
[347845086,1736151048318,-49.05813869,0.00011026,2]
[347845087,1736151048333,-733.17186131,0.00011026,2]
[347845088,1736151048343,-500.0,0.00011026,2]
[347845089,1736151048352,-500.0,0.00011026,2]
[347845090,1736151048362,-609.53,0.00011026,2]
[347845091,1736151048371,-599.36,0.00011026,2]
[347845092,1736151048380,-1632.92,0.00011026,2]
[347845093,1736151048390,-591.42,0.00011026,2]
[347845094,1736151048399,-500.0,0.00011026,2]
[347845095,1736151048412,-1030.067934,0.00011026,2]
[347845096,1736151048422,-772.94,0.00011026,2]
[347845097,1736151048432,-500.0,0.00011026,2]
[347845098,1736151048441,-500.0,0.00011026,2]
[347845099,1736151048451,-518.27114699,0.00011026,2]
[347845100,1736151048463,-331.40644944,0.00011026,2]
[347845101,1736151048474,-68.02318557,0.00011026,2]
[347845102,1736151048484,-431.97681443,0.00011026,2]
[347845103,1736151048505,-68.02318557,0.00011026,2]
[347845104,1736151048515,-500.0,0.00011026,2]
[347845105,1736151048525,-1125.09,0.00011026,2]
[347845106,1736151048535,-2305.97,0.00011026,2]
[347845107,1736151048544,-3360.18,0.00011026,2]
[347845108,1736151048554,-808.51,0.00011026,2]
[347845109,1736151048563,-500.0,0.00011026,2]
[347845110,1736151048573,-2182.01,0.00011026,2]
[347845111,1736151048584,-1975.06,0.00011027,2]
[347845112,1736151048594,-1092.6735861,0.00011027,2]
[347845113,1736151048605,-157.2764139,0.00011027,2]
[347845114,1736151048615,-617.26756889,0.00011027,2]
[347845115,1736151048627,-29.37243111,0.00011027,2]
[347845116,1736151048636,-277.0,0.00011027,2]
[347845117,1736151048646,-295.62756889,0.00011027,2]
[347845118,1736151048657,-802.43243111,0.00011027,2]
[347845119,1736151048667,-1246.84465124,0.00011027,2]
[347845130,1736151213471,10000.0,0.00012356,29]
[347845131,1736151233875,40000.0,0.00012356,29]
[347845132,1736151290545,10000.0,0.00012121,24]
[347845133,1736151298627,40000.0,0.00012121,24]
[347845134,1736151349097,50000.0,0.00012121,24]
[347845135,1736151394528,50000.0,0.00012121,24]
[347845136,1736151455310,50000.0,0.00012121,24]
[347845137,1736151514862,50000.0,0.00012121,24]
[347845138,1736151561813,50000.0,0.00012121,24]
[347845139,1736151599260,50000.0,0.00012121,24]
[347845140,1736151634698,22678.91226372,0.00012121,24]
[347845190,1736152232130,-481.67,8.219e-05,2]
[347845191,1736152232140,-250.0,9.476e-05,2]
[347845192,1736152232149,-162.64,9.583e-05,2]
[347845193,1736152232159,-175.71,9.84e-05,2]
[347845194,1736152232168,-116.46681213,0.0001,2]
[347845195,1736152232298,-731.9837523,0.0001,2]
[347845196,1736152232308,-11392.76504081,0.0001,2]
[347845197,1736152232319,-160.47,0.00010137,2]
[347845198,1736152232328,-665.48,0.00010137,2]
[347845199,1736152232338,-1500.51,0.0001017,2]
[347845200,1736152232347,-1523.82,0.00010174,2]
[347845201,1736152232357,-1520.57,0.00010178,2]
[347845202,1736152232366,-1518.48,0.00010182,2]
[347845203,1736152232375,-1470.57,0.00010187,2]
[347845204,1736152232384,-1510.18,0.00010192,2]
[347845205,1736152232394,-150.99,0.00010192,2]
[347845206,1736152232403,-1501.44,0.00010198,2]
[347845207,1736152232412,-150.0,0.00010203,2]
[347845208,1736152232421,-1527.1,0.00010204,2]
[347845209,1736152232431,-1506.55,0.00010204,2]
[347845210,1736152232440,-1499.19,0.00010204,2]
[347845211,1736152232450,-1483.08,0.00010204,2]
[347845212,1736152232459,-1513.09,0.00010281,2]
[347845213,1736152232468,-1000.0,0.00010288,2]
[347845214,1736152232479,-500.0,0.00010303,2]
[347845215,1736152232488,-659.09,0.00010303,2]
[347845216,1736152232497,-720.61,0.00010303,2]
[347845217,1736152232507,-626.93,0.00010303,2]
[347845218,1736152232516,-500.0,0.00010303,2]
[347845219,1736152232525,-500.0,0.00010303,2]
[347845220,1736152232535,-500.0,0.00010303,2]
[347845221,1736152232546,-500.0,0.00010303,2]
[347845222,1736152232555,-500.0,0.00010303,2]
[347845223,1736152232564,-500.0,0.00010303,2]
[347845224,1736152232573,-500.0,0.00010303,2]
[347845225,1736152232584,-500.0,0.00010303,2]
[347845226,1736152232594,-500.0,0.00010303,2]
[347845227,1736152232603,-500.0,0.00010303,2]
[347845228,1736152232612,-500.0,0.00010303,2]
[347845229,1736152232622,-500.0,0.00010303,2]
[347845230,1736152232632,-500.0,0.00010303,2]
[347845231,1736152232641,-500.0,0.00010303,2]
[347845232,1736152232651,-500.0,0.00010303,2]
[347845233,1736152232660,-500.0,0.00010303,2]
[347845234,1736152232669,-500.0,0.00010303,2]
[347845235,1736152232679,-500.0,0.00010303,2]
[347845236,1736152232688,-500.0,0.00010303,2]
[347845237,1736152232698,-500.0,0.00010303,2]
[347845238,1736152232707,-500.0,0.00010303,2]
[347845239,1736152232716,-500.0,0.00010303,2]
[347845241,1736152232726,-500.0,0.00010303,2]
[347845242,1736152232736,-500.0,0.00010303,2]
[347845243,1736152232746,-639.37,0.00010303,2]
[347845244,1736152232755,-500.0,0.00010303,2]
[347845246,1736152232764,-564.89,0.00010303,2]
[347845248,1736152232774,-823.9,0.00010303,2]
[347845249,1736152232783,-500.0,0.00010303,2]
[347845250,1736152232793,-590.24,0.00010303,2]
[347845251,1736152232808,-621.68524538,0.00010303,2]
[347845252,1736152232818,-500.0,0.00010303,2]
[347845253,1736152232828,-500.0,0.00010303,2]
[347845254,1736152232837,-500.0,0.00010303,2]
[347845256,1736152232849,-2640.59,0.00010303,2]
[347845258,1736152232859,-500.0,0.00010303,2]
[347845260,1736152232869,-1446.71,0.00010303,2]
[347845262,1736152232879,-4643.74,0.00010303,2]
[347845264,1736152232889,-3991.28,0.00010303,2]
[347845266,1736152232899,-500.0,0.00010303,2]
[347845268,1736152232908,-1430.64,0.00010303,2]
[347845270,1736152232917,-2738.13,0.00010303,2]
[347845272,1736152232927,-1470.12,0.00010303,2]
[347845273,1736152232936,-1490.79,0.00010303,2]
[347845275,1736152232946,-2091.0,0.00010304,2]
[347845277,1736152232955,-5364.35,0.00010304,2]
[347845279,1736152232965,-500.0,0.00010304,2]
[347845282,1736152232976,-500.0,0.00010304,2]
[347845283,1736152232985,-500.0,0.00010304,2]
[347845285,1736152232994,-2492.31,0.00010304,2]
[347845287,1736152233004,-500.0,0.00010304,2]
[347845289,1736152233013,-503.15,0.00010304,2]
[347845291,1736152233022,-1141.03,0.00010304,2]
[347845293,1736152233031,-963.56,0.00010304,2]
[347845295,1736152233041,-590.36,0.00010304,2]
[347845297,1736152233051,-1000.0,0.00010304,2]
[347845299,1736152233061,-570.51,0.00010304,2]
[347845300,1736152233071,-500.0,0.00010304,2]
[347845301,1736152233080,-1025.97,0.00010304,2]
[347845302,1736152233090,-481.67,0.00010451,2]
[347845303,1736152233099,-668.64,0.00010478,2]
[347845304,1736152233109,-1579.49,0.00010478,2]
[347845305,1736152233118,-500.0,0.00010478,2]
[347845306,1736152233127,-500.0,0.00010478,2]
[347845307,1736152233137,-500.0,0.00010478,2]
[347845308,1736152233146,-500.0,0.00010478,2]
[347845309,1736152233155,-500.0,0.00010478,2]
[347845310,1736152233165,-500.0,0.00010478,2]
[347845311,1736152233174,-500.0,0.00010478,2]
[347845312,1736152233183,-638.3237556,0.00010478,2]
[347845313,1736152233193,-1197.66,0.00010478,2]
[347845314,1736152233203,-1028.66,0.00010478,2]
[347845315,1736152233212,-1855.65,0.00010478,2]
[347845316,1736152233222,-1475.57,0.00010478,2]
[347845317,1736152233232,-1671.65250953,0.00010522,2]
[347845318,1736152233241,-1221.32,0.00010545,2]
[347845319,1736152233250,-500.0,0.00010577,2]
[347845320,1736152233259,-659.09,0.00010577,2]
[347845321,1736152233269,-720.61,0.00010577,2]
[347845322,1736152233278,-626.93,0.00010577,2]
[347845323,1736152233287,-500.0,0.00010577,2]
[347845324,1736152233296,-500.0,0.00010577,2]
[347845325,1736152233306,-500.0,0.00010577,2]
[347845326,1736152233316,-500.0,0.00010577,2]
[347845327,1736152233325,-500.0,0.00010577,2]
[347845328,1736152233335,-500.0,0.00010577,2]
[347845329,1736152233344,-500.0,0.00010577,2]
[347845330,1736152233355,-500.0,0.00010577,2]
[347845331,1736152233364,-500.0,0.00010577,2]
[347845332,1736152233374,-500.0,0.00010577,2]
[347845333,1736152233383,-500.0,0.00010577,2]
[347845334,1736152233392,-500.0,0.00010577,2]
[347845335,1736152233401,-500.0,0.00010577,2]
[347845336,1736152233410,-500.0,0.00010577,2]
[347845337,1736152233420,-500.0,0.00010577,2]
[347845338,1736152233430,-500.0,0.00010577,2]
[347845339,1736152233439,-500.0,0.00010577,2]
[347845340,1736152233449,-500.0,0.00010577,2]
[347845341,1736152233458,-500.0,0.00010577,2]
[347845342,1736152233467,-500.0,0.00010577,2]
[347845343,1736152233476,-639.37,0.00010577,2]
[347845344,1736152233485,-500.0,0.00010577,2]
[347845345,1736152233495,-564.89,0.00010577,2]
[347845346,1736152233504,-823.9,0.00010577,2]
[347845347,1736152233514,-259.52594462,0.00010577,2]
[347845348,1736152233523,-590.24,0.00010577,2]
[347845349,1736152233533,-500.0,0.00010577,2]
[347845350,1736152233542,-500.0,0.00010577,2]
[347845351,1736152233552,-500.0,0.00010577,2]
[347845352,1736152233562,-2640.59,0.00010577,2]
[347845353,1736152233571,-1446.71,0.00010577,2]
[347845354,1736152233581,-4643.74,0.00010577,2]
[347845355,1736152233591,-3991.28,0.00010577,2]
[347845356,1736152233820,-500.0,0.00010577,2]
[347845357,1736152233831,-1430.64,0.00010577,2]
[347845358,1736152233842,-2738.13,0.00010577,2]
[347845359,1736152233853,-2091.0,0.00010578,2]
[347845360,1736152233863,-5364.35,0.00010578,2]
[347845361,1736152233873,-500.0,0.00010578,2]
[347845362,1736152233884,-500.0,0.00010578,2]
[347845363,1736152233895,-500.0,0.00010578,2]
[347845364,1736152233905,-2492.31,0.00010578,2]
[347845365,1736152233915,-500.0,0.00010578,2]
[347845366,1736152233925,-503.15,0.00010578,2]
[347845367,1736152233934,-1141.03,0.00010578,2]
[347845368,1736152233944,-963.56,0.00010578,2]
[347845369,1736152233953,-590.36,0.00010578,2]
[347845370,1736152233963,-1000.0,0.00010578,2]
[347845371,1736152233973,-570.51,0.00010578,2]
[347845372,1736152233983,-500.0,0.00010578,2]
[347845373,1736152233993,-1025.97,0.00010578,2]
[347845374,1736152234002,-961.0928,0.00010652,2]
[347845375,1736152234012,-228.15632485,0.00010701,2]
[347845376,1736152234022,-150.0,0.00010701,2]
[347845377,1736152234031,-500.0,0.00010751,2]
[347845378,1736152234041,-500.0,0.00010751,2]
[347845379,1736152234052,-500.0,0.00010751,2]
[347845380,1736152234063,-579.01,0.00010751,2]
[347845381,1736152234073,-500.0,0.00010751,2]
[347845382,1736152234083,-500.0,0.00010751,2]
[347845383,1736152234093,-823.83,0.00010751,2]
[347845384,1736152234103,-500.0,0.00010751,2]
[347845385,1736152234112,-1101.78,0.00010751,2]
[347845386,1736152234122,-3301.09,0.00010751,2]
[347845387,1736152234131,-1305.56,0.00010751,2]
[347845388,1736152234141,-500.0,0.00010751,2]
[347845389,1736152234150,-626.36,0.00010751,2]
[347845390,1736152234160,-500.0,0.00010751,2]